[Event "73rd Greek Championship 2024"]
[Site "Thessaloniki"]
[Date "2024.12.03"]
[Round "2.1"]
[White "Patrelakis, Evaggelos"]
[Black "Alexiadis, Hristos"]
[Result "1-0"]
[Annotator "TA"]
[ECO "C70"]
[WhiteElo "2437"]
[BlackElo "2341"]
[PlyCount "79"]
[EventDate "2024.12.02"]
[EventType "tourn"]
[EventCountry "GRE"]
[SourceTitle "playchess.com"]
[Source "ChessBase"]
[SourceQuality "1"]
[TimeControl "40/5400+30:1800+30"]

{[%evp 9,79,27,45,20,24,25,17,29,30,-45,120,0,0,-29,41,33,33,18,29,25,18,27,43,43,43,37,32,45,60,68,190,134,174,77,223,224,226,192,191,202,282,275,431,417,493,472,454,236,237,235,228,217,252,235,239,242,265,230,272,268,354,291,520,435,598,462,459,464,448,456,553,456]} 1. e4 {[%emt 0:00:03]} e5 {[%emt 0:01:57]} 2. Nf3 {[%emt 0:00:17]} Nc6 {[%emt 0:00:10]} 3. Bb5 {[%emt 0:00:49]} a6 {[%emt 0:01:04]} 4. Ba4 {[%emt 0:00:14]} Nge7 {[%emt 0:00:08]} 5. c3 {[%emt 0:02:55]} Ng6 {[%emt 0:00:15]} 6. O-O {[%emt 0:00:55]} d5 {[%emt 0:00:50]} 7. exd5 {[%emt 0:03:01]} (7. d4 {simplifies} dxe4 8. Bxc6+ bxc6 9. Nxe5 Nxe5 10. dxe5 Qxd1 11. Rxd1 Bf5 12. Bf4) 7... Qxd5 {[%emt 0:00:06]} 8. Bb3 {[%emt 0:09:29]} Qd3 {[%emt 0:00:54]} 9. Ng5 {[%emt 0:03:18]} (9. Re1 $11) 9... Bc5 $2 {[%emt 0:23:21]} (9... Be7 $15 {stays ahead.} 10. Bc2 (10. Bxf7+ Kf8 $11) (10. Nxf7 $2 Rf8 $19) 10... Qd6) 10. Bc2 {[%emt 0:18:07]} (10. Nxf7 $6 Rf8 11. Bc2 Qd5 $11) (10. Bxf7+ $16 Ke7 11. b4) 10... Qd7 $11 {[%emt 0:15:50]} 11. d4 {[%emt 0:01:24]} Be7 {[%emt 0:01:44]} (11... exd4 $11 12. Re1+ Be7) 12. d5 {[%emt 0:04:01]} Nd8 {[%emt 0:03:07]} 13. Re1 {[%emt 0:06:04]} O-O {[%emt 0:12:23]} 14. Qh5 {[%emt 0:01:50][%csl Gg5][%cal Rh5h7]} Bxg5 {[%emt 0:01:16]} 15. Qxg5 {[%emt 0:04:49]} f6 {[%emt 0:04:18]} 16. Qh5 {[%emt 0:02:43]} Nf7 {[%emt 0:00:25]} 17. c4 {[%emt 0:01:03][%cal Ob1c3]} b5 {[%emt 0:10:30]} 18. b3 {[%emt 0:08:10]} c6 {[%emt 0:06:18]} 19. Nc3 {[%emt 0:05:51]} Bb7 {[%emt 0:08:22] [#]} ({Black should play} 19... f5 $1 $14) 20. Ba3 $40 {[%emt 0:02:00][%mdl 128] White wants a kill.} (20. Re3 $1 $18 cxd5 21. Bf5 (21. Rh3 Nh6 $18)) 20... Rfd8 {[%emt 0:03:04][%cal Rc6d5]} 21. Rad1 {[%emt 0:08:01]} (21. Bf5 $18 Qc7 22. Ne4) 21... b4 {[%emt 0:03:02]} 22. Bxb4 $18 {[%emt 0:01:08]} Ng5 {[%emt 0:00:10]} 23. g3 {[%emt 0:10:59] Against Nf4} cxd5 {[%emt 0:00:23]} 24. Nxd5 {[%emt 0:02:07]} Qe6 {[%emt 0:01:08]} 25. h4 {[%emt 0:00:53]} Nh3+ {[%emt 0:01:16] [#]} (25... Rxd5 {keeps fighting.} 26. cxd5 Qh3) 26. Kh2 $1 {[%emt 0:00:20]} (26. Kf1 Bxd5 27. Rxd5 (27. cxd5 Qb6 $14) 27... Rxd5 $16) 26... Bxd5 {[%emt 0:00:57]} 27. cxd5 {[%emt 0:00:45]} ({Less strong is} 27. Rxd5 Rxd5 28. cxd5 Qb6 $18) 27... Qb6 {[%emt 0:00:03]} 28. Kxh3 {[%emt 0:01:04]} (28. Bd2 $142) 28... Qxb4 {[%emt 0:00:05]} 29. Bxg6 {[%emt 0:00:24]} hxg6 {[%emt 0:00:08]} 30. Qxg6 {[%emt 0:00:22]} Qc5 {[%emt 0:00:59]} 31. Qf5 {[%emt 0:00:48]} Rd6 {[%emt 0:00:58]} 32. Re2 {[%emt 0:00:37][%cal Be1e2,Be2d2,Bd2c2,Bc2c7][%mdl 32]} Rad8 {[%emt 0:00:11]} 33. Red2 {[%emt 0:00:36]} Kf7 {[%emt 0:00:13]} 34. Qe4 {[%emt 0:00:50]} g6 {[%emt 0:00:25]} 35. Kg2 {[%emt 0:00:21][%cal Oh4h5]} Re8 $2 {[%emt 0:00:53]} (35... Kg7 36. g4 Qa7) 36. Rc2 {[%emt 0:00:26]} Qb6 {[%emt 0:00:08]} 37. Rdc1 {[%emt 0:01:03] and Rc7+ should not be overlooked} f5 {[%emt 0:00:29]} 38. Rc7+ {[%emt 0:00:25]} Kg8 {[%emt 0:00:06]} 39. Qa4 {[%emt 0:00:31]} Red8 {[%emt 0:00:30]} 40. R1c6 {[%emt 0:00:00]} 1-0

[Event "73rd Greek Championship 2024"]
[Site "Thessaloniki"]
[Date "2024.12.03"]
[Round "2.2"]
[White "Kolytas, Spiridon"]
[Black "Tsaknakis, Zisis"]
[Result "1/2-1/2"]
[Annotator "RC"]
[ECO "E61"]
[WhiteElo "1946"]
[BlackElo "2259"]
[PlyCount "108"]
[EventDate "2024.12.02"]
[EventType "tourn"]
[EventCountry "GRE"]
[SourceTitle "playchess.com"]
[Source "ChessBase"]
[SourceQuality "1"]
[TimeControl "40/5400+30:1800+30"]

1. d4 {[%emt 0:00:05]} Nf6 {[%emt 0:01:03]} 2. c4 {[%emt 0:00:25]} g6 {[%emt 0:00:12]} 3. Nc3 {[%emt 0:00:11]} Bg7 {[%emt 0:00:03]} 4. Nf3 {[%emt 0:00:08]} d6 {[%emt 0:00:05]} 5. Bg5 {[%emt 0:00:22]} h6 {[%emt 0:00:01]} 6. Bh4 {[%emt 0:00:40]} g5 {[%emt 0:00:01]} 7. Bg3 {[%emt 0:00:07]} Nh5 {[%emt 0:00:02]} 8. e3 {[%emt 0:00:44]} Nxg3 {[%emt 0:00:02]} 9. hxg3 {[%emt 0:00:07]} c5 {[%emt 0:00:03]} 10. Be2 {[%emt 0:03:12]} g4 {[%emt 0:12:52]} 11. Nh4 {[%emt 0:00:10]} cxd4 {[%emt 0:00:16]} 12. exd4 {[%emt 0:00:09]} Nc6 {[%emt 0:04:26]} 13. Bxg4 {[%emt 0:14:46]} Nxd4 {[%emt 0:01:20]} 14. O-O {[%emt 0:01:48]} O-O {[%emt 0:04:41]} 15. Rc1 {[%emt 0:06:53]} Bxg4 {[%emt 0:16:48]} 16. Qxg4 {[%emt 0:00:15]} e6 {[%emt 0:00:17]} 17. Rfd1 {[%emt 0:07:57]} f5 {[%emt 0:00:43]} 18. Qg6 {[%emt 0:07:40]} Qg5 {[%emt 0:19:08]} 19. Qxg5 {[%emt 0:11:56]} hxg5 {[%emt 0:00:01]} 20. Nf3 {[%emt 0:00:09]} Nxf3+ {[%emt 0:02:21]} 21. gxf3 {[%emt 0:00:01]} Rad8 {[%emt 0:06:23]} 22. b3 {[%emt 0:01:52]} Be5 {[%emt 0:03:28]} 23. Rd2 {[%emt 0:08:25]} Kf7 {[%emt 0:00:20]} 24. Ne2 {[%emt 0:04:37]} Ke7 {[%emt 0:08:45]} 25. Rcd1 {[%emt 0:00:46]} f4 {[%emt 0:00:33]} 26. Kg2 {[%emt 0:01:35]} Rc8 {[%emt 0:02:22]} 27. a4 {[%emt 0:03:10]} Rh8 {[%emt 0:01:37]} 28. Rd3 {[%emt 0:03:52]} Rh7 {[%emt 0:01:18]} 29. Rh1 {[%emt 0:01:20]} Rxh1 {[%emt 0:02:28]} 30. Kxh1 {[%emt 0:00:02]} d5 {[%emt 0:03:39]} 31. cxd5 {[%emt 0:01:52]} Rc2 {[%emt 0:00:37]} 32. gxf4 {[%emt 0:04:25]} gxf4 {[%emt 0:01:52]} 33. Nd4 {[%emt 0:03:16]} Bxd4 {[%emt 0:02:27]} 34. Rxd4 {[%emt 0:00:01]} e5 {[%emt 0:01:29]} 35. d6+ {[%emt 0:06:33]} Kd7 {[%emt 0:00:07]} 36. Rd5 {[%emt 0:00:31]} Rxf2 {[%emt 0:01:28]} 37. Rd3 {[%emt 0:02:56]} Rc2 {[%emt 0:03:32]} 38. Rd5 {[%emt 0:02:06]} Rf2 {[%emt 0:00:21]} 39. Rd3 {[%emt 0:00:51]} Rc2 {[%emt 0:00:24]} 40. Rd5 {[%emt 0:00:00]} Rc3 {[%emt 0:00:00]} 41. Kg2 {[%emt 0:06:46]} Rxb3 {[%emt 0:03:21]} 42. Rxe5 {[%emt 0:00:12]} Kxd6 {[%emt 0:01:09]} 43. Re4 {[%emt 0:02:34]} a5 {[%emt 0:04:04]} 44. Rxf4 {[%emt 0:00:12]} Rb4 {[%emt 0:00:16]} 45. Rg4 {[%emt 0:04:33]} b5 {[%emt 0:06:51]} 46. axb5 {[%emt 0:00:30]} Kc5 {[%emt 0:01:27]} 47. Kf2 {[%emt 0:10:27]} Kxb5 {[%emt 0:00:57]} 48. Ke3 {[%emt 0:02:00]} Rc4 {[%emt 0:06:40]} 49. Kd3 {[%emt 0:00:56]} Rc6 {[%emt 0:01:09]} 50. Rg8 {[%emt 0:01:06]} a4 {[%emt 0:00:30]} 51. Rb8+ {[%emt 0:02:40]} Ka5 {[%emt 0:00:07]} 52. Ra8+ {[%emt 0:00:03]} Kb4 {[%emt 0:00:06]} 53. Rb8+ {[%emt 0:00:06]} Ka5 {[%emt 0:02:53]} 54. Ra8+ {[%emt 0:00:04]} Kb4 {[%emt 0:00:36]} 1/2-1/2

[Event "73rd Greek Championship 2024"]
[Site "Thessaloniki"]
[Date "2024.12.03"]
[Round "2.3"]
[White "Hadzimanolis, Antonios"]
[Black "Alexakis, Dimitris"]
[Result "1/2-1/2"]
[Annotator "TA"]
[ECO "E16"]
[WhiteElo "2159"]
[BlackElo "2520"]
[PlyCount "119"]
[EventDate "2024.12.02"]
[EventType "tourn"]
[EventCountry "GRE"]
[SourceTitle "playchess.com"]
[Source "ChessBase"]
[SourceQuality "1"]
[TimeControl "40/5400+30:1800+30"]

{[%evp 27,119,-8,0,-18,-1,-1,22,9,17,20,39,47,45,66,55,14,22,-17,0,0,0,0,29,31,65,56,65,-49,-56,-48,-49,-44,-45,-49,-45,-44,-41,-51,-46,-65,-55,-76,-68,-62,-11,-12,-8,-8,-10,-16,-9,-17,-17,-42,-41,-42,-42,-47,-26,-26,0,0,0,0,0,0,0,0,0,-8,-8,-8,-8,-8,-8,-8,-8,-8,0,0,0,-8,0,0,0,-8,-8,-8,0,-8,-8,-8,-8,-8]} 1. d4 {[%emt 1:31:00]} Nf6 {[%emt 0:03:16]} 2. c4 {[%emt 0:00:00]} e6 {[%emt 0:00:25]} 3. Nf3 {[%emt 0:00:00]} Bb4+ {[%emt 0:13:35]} 4. Nbd2 {[%emt 0:00:00]} d5 {[%emt 0:00:14]} 5. a3 {[%emt 0:00:00]} Be7 {[%emt 0:01:15]} 6. Qc2 {[%emt 0:00:00]} O-O {[%emt 0:08:02]} 7. g3 {[%emt 0:00:00]} b6 {[%emt 0:04:46]} 8. Bg2 {[%emt 0:00:00]} Bb7 {[%emt 0:04:07]} 9. O-O {[%emt 0:00:00]} c5 {[%emt 0:00:34]} 10. dxc5 {[%emt 0:00:00]} bxc5 {[%emt 0:00:25]} 11. cxd5 {[%emt 0:00:00] E16: Queen's Indian: 4 g3 Bb7 5 Bg2 Bb4+.} exd5 {[%emt 0:01:05]} 12. b3 {[%emt 0:00:00]} a5 {[%emt 0:05:50]} 13. Bb2 {[%emt 0:00:00]} a4 {[%emt 0:06:41]} 14. Rfd1 {[%emt 0:00:00]} Nbd7 {[%emt 0:10:18]} 15. e4 $146 {[%emt 0:00:00]} ({Predecessor:} 15. Ne5 Nb6 16. Ne4 axb3 17. Qxb3 Nxe4 18. Bxe4 Qc7 19. Bg2 Bd6 20. Ng4 Bc6 21. Qf3 {0-1 Suez Panama,G (2078)-Villar Reymundo,J (2237) Gibraltar Challengers op-A 2019 (1)}) 15... axb3 {[%emt 0:25:56]} (15... Nxe4 $2 16. Nxe4 axb3 (16... dxe4 $2 17. Ne5 $18) 17. Qxb3 $18) 16. Qxb3 {[%emt 0:00:00]} Bc6 {[%emt 0:01:38]} (16... dxe4 {is more complex.} 17. Ne5 Nxe5 18. Nxe4 Qb8) 17. exd5 {[%emt 0:00:00]} Bxd5 {[%emt 0:02:31]} (17... Ba4 $5 18. Qd3 Bxd1 19. Rxd1 Ng4 $16) 18. Qc2 {[%emt 0:00:00]} Qa5 {[%emt 0:02:50]} 19. a4 {[%emt 0:00:00]} Qa6 {[%emt 0:04:06]} 20. Nh4 {[%emt 0:00:00]} Bxg2 {[%emt 0:00:17]} 21. Kxg2 {[%emt 0:00:00]} Rfb8 {[%emt 0:01:30]} 22. Ndf3 {[%emt 0:00:00]} Bf8 {[%emt 0:00:18]} 23. Nf5 {[%emt 0:00:00]} g6 {[%emt 0:00:48]} 24. Ne3 {[%emt 0:00:00]} Qc6 {[%emt 0:00:25]} 25. Nc4 {[%emt 0:01:57]} Rb4 {[%emt 0:00:26]} 26. a5 {[%emt 0:03:24]} Bg7 {[%emt 0:00:29]} 27. Ba3 {[%emt 0:03:17]} (27. Rac1 $14) 27... Rxc4 $1 $15 {[%emt 0:00:35]} 28. Qxc4 {[%emt 0:00:02]} Qxf3+ $1 {[%emt 0:01:02]} (28... Rxa5 29. Bb2 Rxa1 30. Bxa1 $11) 29. Kxf3 {[%emt 0:00:32]} Ne5+ {[%emt 0:00:02]} (29... Rxa5 $2 30. Bb2 Rxa1 31. Rxa1 $18 (31. Bxa1 Nf8 $18)) 30. Kg2 {[%emt 0:00:06]} Nxc4 {[%emt 0:00:04]} 31. Bxc5 {[%emt 0:00:12]} Ne4 {[%emt 0:00:47]} (31... Rxa5 $2 {too greedy.} 32. Rd8+ $18) (31... Nxa5 $2 32. Ra4 $18) 32. Bd4 {[%emt 0:01:44]} Rxa5 {[%emt 0:01:06]} (32... Nxa5 $2 {loses.} 33. Bxg7 Kxg7 34. Rd5 $18) 33. Rac1 {[%emt 0:04:13]} Ra4 {[%emt 0:00:53]} 34. Bxg7 {[%emt 0:00:20]} Kxg7 {[%emt 0:00:03]} 35. Rd4 {[%emt 0:00:08]} Nb6 {[%emt 0:00:05]} ({Better is} 35... Ned6 $15) 36. Rxa4 $11 {[%emt 0:00:37]} Nxa4 {[%emt 0:00:02]} 37. Rc4 {[%emt 0:00:07]} Nec5 {[%emt 0:00:48]} 38. Kf3 {[%emt 0:00:15]} Kf6 {[%emt 0:00:25]} 39. Ke3 {[%emt 0:00:31]} Ke5 {[%emt 0:00:00]} 40. f4+ {[%emt 0:00:00]} Kd5 {[%emt 0:00:00]} 41. Rd4+ {[%emt 0:01:28]} Ke6 {[%emt 0:02:10]} 42. Rc4 {[%emt 0:00:22]} Kd6 {[%emt 0:16:15]} 43. Rd4+ {[%emt 0:00:35]} Kc7 {[%emt 0:03:07]} 44. f5 $1 {[%emt 0:00:37]} g5 {[%emt 0:03:23]} 45. h4 {[%emt 0:00:35]} h6 {[%emt 0:02:56]} 46. Kf3 {[%emt 0:00:23]} Nb6 {[%emt 0:06:29]} 47. Kg4 {[%emt 0:00:35]} gxh4 {[%emt 0:00:19]} 48. Kxh4 {[%emt 0:00:27]} Nc8 {[%emt 0:00:34]} 49. f6 {[%emt 0:11:01]} Nd6 {[%emt 0:00:29]} 50. Kh5 {[%emt 0:00:39]} Nce4 {[%emt 0:01:18]} 51. g4 {[%emt 0:01:21]} Kd7 {[%emt 0:00:27]} 52. Kxh6 {[%emt 0:03:11]} Ke6 {[%emt 0:00:04]} 53. Rd1 {[%emt 0:05:48]} Nxf6 {[%emt 0:01:00]} 54. Kg7 {[%emt 0:04:06]} Nfe4 {[%emt 0:00:33]} 55. Re1 {[%emt 0:02:48]} f6 {[%emt 0:00:32]} 56. Kg6 {[%emt 0:00:33]} Ke5 {[%emt 0:00:15]} 57. Rf1 {[%emt 0:00:54]} Nc8 {[%emt 0:00:55]} 58. g5 {[%emt 0:01:16]} fxg5 {[%emt 0:00:23]} 59. Rf5+ {[%emt 0:00:15]} Ke6 {[%emt 0:00:06]} 60. Rxg5 {[%emt 0:00:11]} 1/2-1/2

[Event "73rd Greek Championship 2024"]
[Site "Thessaloniki"]
[Date "2024.12.03"]
[Round "2.4"]
[White "Kalogridis, Antonios"]
[Black "Kourkoulos-Arditis, Stamatis"]
[Result "1-0"]
[Annotator "TA"]
[ECO "E94"]
[WhiteElo "2333"]
[BlackElo "2575"]
[PlyCount "119"]
[EventDate "2024.12.02"]
[EventType "tourn"]
[EventCountry "GRE"]
[SourceTitle "playchess.com"]
[Source "ChessBase"]
[SourceQuality "1"]
[TimeControl "40/5400+30:1800+30"]

{[%evp 46,119,210,217,235,234,210,-51,126,65,51,26,64,67,66,55,63,56,304,302,618,607,571,282,716,708,713,713,709,706,704,252,250,220,196,179,191,181,205,212,223,204,205,195,283,258,338,342,415,397,445,456,904,933,921,908,2205,2092,6119,6410,6410,6035,29985,29986,29985,29986,29988,29988,29988,29989,29990,29991,29991,29992,29992,29986]} 1. d4 {[%emt 0:00:02]} Nf6 {[%emt 0:00:07]} 2. c4 {[%emt 0:00:03]} g6 {[%emt 0:00:08]} 3. Nc3 {[%emt 0:00:02]} Bg7 {[%emt 0:00:07]} 4. e4 {[%emt 0:00:04]} d6 {[%emt 0:00:05]} 5. Be2 {[%emt 0:00:03]} O-O {[%emt 0:00:17]} 6. Nf3 {[%emt 0:00:02]} Na6 {[%emt 0:00:35]} 7. O-O {[%emt 0:00:08]} e5 {[%emt 0:00:10]} 8. Be3 {[%emt 0:00:05]} Qe8 {[%emt 0:00:45] 8...Qe7 is becoming the main line.} 9. dxe5 {[%emt 0:00:20]} dxe5 {[%emt 0:00:12]} 10. Qc2 {[%emt 0:01:53] E94: King's Indian: Classical: 6 Be2 e5 7 0-0: Various Black 7th moves.} Ng4 {[%emt 0:08:33]} 11. Bd2 {[%emt 0:03:00]} c6 {[%emt 0:02:27]} 12. h3 {[%emt 0:01:33]} Nf6 {[%emt 0:01:35]} 13. Be3 {[%emt 0:02:44]} Nd7 $146 {[%emt 0:04:13]} ({Predecessor:} 13... Qe7 14. Rad1 Nh5 15. Qd2 {½-½ Offenborn,H (2330)-Stolz,P (2328) GER Pyramid email 2005}) 14. a3 {[%emt 0:05:20]} Ndc5 {[%emt 0:12:54]} 15. b4 {[%emt 0:08:09]} Ne6 {[%emt 0:01:02]} 16. Rad1 {[%emt 0:00:13]} f5 {[%emt 0:03:22]} 17. c5 {[%emt 0:06:54]} f4 {[%emt 0:02:20]} 18. Bc1 {[%emt 0:00:07]} Nac7 {[%emt 0:07:00]} 19. Bc4 {[%emt 0:04:32]} Kh8 {[%emt 0:00:19]} 20. Bb2 {[%emt 0:07:37]} Qe7 {[%emt 0:07:24]} 21. Nb1 {[%emt 0:05:26]} Ng5 {[%emt 0:17:44]} 22. Nbd2 {[%emt 0:01:33]} Nxh3+ {[%emt 0:00:22]} 23. gxh3 {[%emt 0:00:14]} Bxh3 {[%emt 0:00:05]} 24. Rfe1 $1 {[%emt 0:06:20]} g5 {[%emt 0:06:19]} 25. Qc3 {[%emt 0:06:55]} Rae8 {[%emt 0:00:20]} 26. Nh2 $2 {[%emt 0:13:36]} (26. Nh4 $18 f3 27. Nhxf3 (27. Nf5 Bxf5 28. exf5 g4 $18)) 26... Bc8 $2 {[%emt 0:01:30]} (26... g4 $15 {stays ahead.}) 27. f3 {[%emt 0:01:41]} (27. Be2 $1 $16 {[%cal Re2g4] aiming for Bg4.} g4 28. Bxg4 Bxg4 29. Nxg4) 27... h5 $14 {[%emt 0:00:59]} 28. Kf2 {[%emt 0:02:43]} Rf6 {[%emt 0:04:03]} (28... g4 $2 29. Nxg4 Bxg4 (29... Qh4+ $2 30. Ke2 $18) 30. Rh1 $18 (30. fxg4 Qh4+ 31. Ke2 f3+ 32. Nxf3 Qxg4 $18)) 29. Rh1 {[%emt 0:01:41]} Rh6 {[%emt 0:00:07]} 30. Rdg1 {[%emt 0:01:45]} Nb5 {[%emt 0:02:46]} 31. Qc2 {[%emt 0:03:45]} g4 $2 {[%emt 0:06:28] [#]} (31... Nd4 $14 32. Qc1 Qd8) 32. Nxg4 $1 $18 {[%emt 0:01:47]} (32. fxg4 Qh4+ 33. Ke2 hxg4 $16) 32... hxg4 $2 {[%emt 0:01:18]} (32... Rh7 33. Nh2 Rd8) 33. fxg4 $18 {[%emt 0:00:05]} Be6 {[%emt 0:09:12] [#]} 34. Bxe5 {[%emt 0:05:36]} (34. Rxh6+ $142 $1 {[%mdl 512]} Bxh6 35. Rh1 (35. Bxe5+ Kg8 $18) 35... Nxa3 36. Bxa3 (36. Rxh6+ Kg7 $18)) 34... Rxh1 $2 {[%emt 0:00:21]} (34... Kg8) 35. Rxh1+ $18 {[%emt 0:00:06]} Kg8 {[%emt 0:00:04]} 36. Bxe6+ {[%emt 0:01:48]} (36. Bxf4 Rf8 37. Ke3 Rxf4 38. Kxf4 Qc7+ 39. Kg5 (39. Ke3 $2 Qg3+ 40. Ke2 Nd4+ 41. Kd1 Qxg4+ 42. Kc1 Nxc2 $19) 39... Nd4 40. Bxe6+ Nxe6+ 41. Kh4 Be5 $19) 36... Qxe6 {[%emt 0:00:04]} 37. Bxg7 {[%emt 0:00:13]} (37. Bxf4 $2 {loses.} Rf8 38. Qc4 Rxf4+ 39. Ke3 Qxc4 40. Nxc4 Rxg4 $19) 37... Kxg7 {[%emt 0:00:04]} 38. Qb2+ $2 {[%emt 0:00:55]} (38. Nf3 {White wants to mate with Qb2+.} Qxe4 39. Qb2+ Kg6 40. Re1 Qxf3+ 41. Kxf3 Rxe1 42. Kxf4) 38... Qe5 $18 {[%emt 0:00:25]} 39. Qxe5+ {[%emt 0:00:14]} Rxe5 {[%emt 0:00:05]} 40. Kf3 {[%emt 0:00:00]} Nxa3 {[%emt 0:00:00]} 41. Kxf4 {[%emt 0:03:26]} Re8 {[%emt 0:02:37]} 42. Rc1 {[%emt 0:02:11]} Nb5 {[%emt 0:02:28]} 43. Nf3 {[%emt 0:00:07]} Rf8+ {[%emt 0:03:05]} 44. Ke3 {[%emt 0:00:07]} Rd8 {[%emt 0:00:09]} (44... Re8 $142 45. Kf4 Rf8+ 46. Ke3 Re8) 45. Nh4 $18 {[%emt 0:02:16]} Rh8 {[%emt 0:06:53]} 46. Nf5+ {[%emt 0:00:45]} Kf6 {[%emt 0:01:00]} 47. Kf4 {[%emt 0:00:44]} Nc7 {[%emt 0:00:12]} 48. g5+ {[%emt 0:00:52]} Kg6 {[%emt 0:02:43]} (48... Kf7 $142 49. Rg1 Kg6) 49. Rd1 $18 {[%emt 0:00:28]} Ne6+ {[%emt 0:00:47]} 50. Kg4 {[%emt 0:00:05]} Rd8 {[%emt 0:03:42]} 51. Rh1 {[%emt 0:00:18]} Nf8 {[%emt 0:00:17]} 52. Rh6+ {[%emt 0:02:26]} Kf7 {[%emt 0:00:05]} 53. Rf6+ {[%emt 0:00:04]} Kg8 {[%emt 0:00:06]} 54. Nh6+ {[%emt 0:03:30]} Kg7 {[%emt 0:00:37]} 55. Kh5 {[%emt 0:01:28]} Rd7 {[%emt 0:00:47]} 56. Nf5+ {[%emt 0:00:17]} Kg8 {[%emt 0:00:10]} 57. g6 {[%emt 0:00:04]} b6 {[%emt 0:01:36]} 58. Kh6 {[%emt 0:00:54]} bxc5 {[%emt 0:00:20]} 59. bxc5 {[%emt 0:00:07]} a5 {[%emt 0:00:45]} 60. g7 {[%emt 0:00:05]} 1-0

[Event "73rd Greek Championship 2024"]
[Site "Thessaloniki"]
[Date "2024.12.03"]
[Round "2.5"]
[White "Stamatiou, Rodolfos"]
[Black "Mitsis, Georgios"]
[Result "1-0"]
[Annotator "TA"]
[ECO "E04"]
[WhiteElo "2308"]
[BlackElo "2383"]
[PlyCount "49"]
[EventDate "2024.12.02"]
[EventType "tourn"]
[EventCountry "GRE"]
[SourceTitle "playchess.com"]
[Source "ChessBase"]
[SourceQuality "1"]
[TimeControl "40/5400+30:1800+30"]

{[%evp 11,49,29,26,11,18,10,9,29,95,85,82,92,92,102,108,88,87,63,118,126,143,134,259,261,510,526,525,508,761,761,749,736,1137,614,1583,1582,1448,1436,29994,29995]} 1. d4 {[%emt 0:01:06]} Nf6 {[%emt 0:00:09]} 2. Nf3 {[%emt 0:01:05]} d5 {[%emt 0:00:19]} 3. c4 {[%emt 0:00:14]} e6 {[%emt 0:00:09]} 4. g3 {[%emt 0:00:05]} dxc4 {[%emt 0:00:24]} 5. Bg2 {[%emt 0:00:17]} a6 {[%emt 0:00:21]} 6. O-O {[%emt 0:00:14]} Nc6 {[%emt 0:00:24][%cal Bb8c6,Bc6e5,Be5d3][%mdl 32]} 7. Bg5 {[%emt 0:00:13][%mdl 1024] White has compensation.} Be7 {[%emt 0:01:06]} 8. e3 {[%emt 0:00:37]} O-O {[%emt 0:08:34]} 9. Nbd2 {[%emt 0:02:05] The position is equal.} b5 {[%emt 0:18:08]} (9... e5 $11 {remains equal.}) 10. Ne5 $16 {[%emt 0:02:06]} Nxe5 {[%emt 0:00:41]} 11. Bxf6 {[%emt 0:00:26]} gxf6 {[%emt 0:03:08]} 12. Bxa8 {[%emt 0:01:04]} Nd3 {[%emt 0:01:44] [#]} 13. b3 {[%emt 0:09:38]} e5 {[%emt 0:16:21]} 14. Qh5 {[%emt 0:19:16]} f5 {[%emt 0:08:46] Against Be4} (14... exd4 $14 15. exd4 Qxd4) 15. dxe5 {[%emt 0:11:18]} c3 {[%emt 0:06:27]} 16. Nf3 {[%emt 0:08:09]} Be6 {[%emt 0:16:39]} (16... c5 $16) 17. Bc6 $18 {[%emt 0:04:14]} Kg7 $2 {[%emt 0:09:59]} (17... c2 {was worth a try.} 18. Nd4 Qc8 19. Nxc2 f6) 18. Rad1 {[%emt 0:07:43]} c2 {[%emt 0:05:33]} 19. Rd2 {[%emt 0:00:30]} c1=R {[%emt 0:01:08]} 20. Rxc1 {[%emt 0:00:45]} Nxc1 {[%emt 0:00:00]} 21. Rxd8 {[%emt 0:00:11]} Rxd8 {[%emt 0:00:00]} 22. Nd4 {[%emt 0:01:58] [#] aiming for Nxe6+.} Nxa2 {[%emt 0:00:08]} 23. Nxe6+ {[%emt 0:01:51]} fxe6 {[%emt 0:00:05]} 24. Be8 {[%emt 0:00:05]} Kh8 {[%emt 0:01:40]} 25. Bg6 {[%emt 0:01:04] White took control after the opening.   Weighted Error Value: White=0.64/Black=0.96.  Mistake:       	---       	Black=4      Inaccurate:     	---       	Black=1      OK:         	White=10    	Black=6      Best:        	White=1     	Black=1} 1-0